[Event "Titled Tuesday Blitz March 22 Late 2022"]
[White "Zhurbinsky, David"]
[Black "Ladan, Nicholas"]
[WhiteFideId "2072904"]
[BlackFideId "30918855"]
[WhiteElo "2566"]
[BlackElo "2167"]
[Result "1-0"]
[Round "02"]
[TimeControl "180+1"]
[Date "2022.03.22"]
[WhiteClock "0:00:26"]
[BlackClock "0:00:05"]

1. e4 {[%clk 0:03:00]}  e5 {[%clk 0:02:59]} 2. Nf3 {[%clk 0:03:01]}  Nc6 {[%clk 0:02:59]} 3. Bb5 {[%clk 0:03:01]}  f5 {[%clk 0:02:58]} 4. d3 {[%clk 0:02:59]}  fxe4 {[%clk 0:02:57]} 5. dxe4 {[%clk 0:03:00]}  Nf6 {[%clk 0:02:58]} 6. O-O {[%clk 0:03:00]}  Bc5 {[%clk 0:02:58]} 7. Nc3 {[%clk 0:02:59]}  d6 {[%clk 0:02:58]} 8. Bg5 {[%clk 0:02:58]}  O-O {[%clk 0:02:57]} 9. Nd5 {[%clk 0:02:56]}  Bg4 {[%clk 0:02:49]} 10. Bc4 {[%clk 0:02:34]}  Kh8 {[%clk 0:02:45]} 11. h3 {[%clk 0:02:30]}  Bh5 {[%clk 0:02:16]} 12. c3 {[%clk 0:02:29]}  Qd7 {[%clk 0:02:08]} 13. Bxf6 {[%clk 0:02:24]}  gxf6 {[%clk 0:02:01]} 14. Bb5 {[%clk 0:02:01]}  Qf7 {[%clk 0:01:04]} 15. Kh2 {[%clk 0:01:52]}  a6 {[%clk 0:00:52]} 16. Be2 {[%clk 0:01:50]}  Rg8 {[%clk 0:00:51]} 17. Nh4 {[%clk 0:01:47]}  Bg6 {[%clk 0:00:42]} 18. Bf3 {[%clk 0:01:39]}  f5 {[%clk 0:00:37]} 19. exf5 {[%clk 0:01:35]}  Bxf5 {[%clk 0:00:35]} 20. Nxf5 {[%clk 0:01:33]}  Qxf5 {[%clk 0:00:35]} 21. Nxc7 {[%clk 0:01:32]}  Raf8 {[%clk 0:00:29]} 22. Nd5 {[%clk 0:01:25]}  e4 {[%clk 0:00:22]} 23. Bg4 {[%clk 0:01:26]}  Qe5+ {[%clk 0:00:21]} 24. Kh1 {[%clk 0:01:18]}  Rxf2 {[%clk 0:00:17]} 25. Rxf2 {[%clk 0:01:10]}  Bxf2 {[%clk 0:00:18]} 26. Qe2 {[%clk 0:01:04]}  e3 {[%clk 0:00:18]} 27. Rd1 {[%clk 0:00:59]}  Qg3 {[%clk 0:00:10]} 28. Nf6 {[%clk 0:00:55]}  Rf8 {[%clk 0:00:07]} 29. Ne4 {[%clk 0:00:50]}  Qe5 {[%clk 0:00:06]} 30. Nxd6 {[%clk 0:00:47]}  h5 {[%clk 0:00:01]} 31. Bxh5 {[%clk 0:00:44]}  Rf4 {[%clk 0:00:02]} 32. Nf7+ {[%clk 0:00:38]}  Rxf7 {[%clk 0:00:02]} 33. Bxf7 {[%clk 0:00:39]}  Kg7 {[%clk 0:00:03]} 34. Bh5 {[%clk 0:00:36]}  Qg5 {[%clk 0:00:03]} 35. Rd7+ {[%clk 0:00:34]}  Kh6 {[%clk 0:00:03]} 36. Rd6+ {[%clk 0:00:32]}  Kg7 {[%clk 0:00:03]} 37. Rg6+ {[%clk 0:00:32]}  Qxg6 {[%clk 0:00:03]} 38. Bxg6 {[%clk 0:00:33]}  Kxg6 {[%clk 0:00:04]} 39. g4 {[%clk 0:00:32]}  Ne5 {[%clk 0:00:02]} 40. Kg2 {[%clk 0:00:32]}  Kf6 {[%clk 0:00:03]} 41. h4 {[%clk 0:00:24]}  Ng6 {[%clk 0:00:02]} 42. g5+ {[%clk 0:00:24]}  Kf5 {[%clk 0:00:02]} 43. Qd3+ {[%clk 0:00:21]}  Kg4 {[%clk 0:00:01]} 44. Qxg6 {[%clk 0:00:21]}  Bxh4 {[%clk 0:00:01]} 45. Qe4+ {[%clk 0:00:21]}  Kxg5 {[%clk 0:00:01]} 46. Qxe3+ {[%clk 0:00:22]}  Kh5 {[%clk 0:00:02]} 47. Qb6 {[%clk 0:00:22]}  Bg5 {[%clk 0:00:03]} 48. Qxb7 {[%clk 0:00:22]}  a5 {[%clk 0:00:04]} 49. Qb5 {[%clk 0:00:22]}  a4 {[%clk 0:00:03]} 50. Qxa4 {[%clk 0:00:23]}  Kg6 {[%clk 0:00:02]} 51. Kf3 {[%clk 0:00:23]}  Kh6 {[%clk 0:00:03]} 52. Kg4 {[%clk 0:00:23]}  Bf6 {[%clk 0:00:04]} 53. Qc6 {[%clk 0:00:24]}  Kg7 {[%clk 0:00:05]} 54. Kf5 {[%clk 0:00:24]}  Be7 {[%clk 0:00:05]} 55. Qg6+ {[%clk 0:00:24]}  Kf8 {[%clk 0:00:06]} 56. Ke6 {[%clk 0:00:25]}  Bf6 {[%clk 0:00:05]} 57. Qf7# {[%clk 0:00:26]} 1-0


[Site "https://www.chess.com"]

[Event "Titled Tuesday Blitz March 22 Late 2022"]
[White "Arabidze, Meri"]
[Black "Schuster, Karsten"]
[WhiteFideId "13604040"]
[BlackFideId "4611071"]
[WhiteElo "2335"]
[BlackElo "2367"]
[Result "1/2-1/2"]
[Round "03"]
[TimeControl "180+1"]
[Date "2022.03.22"]
[WhiteClock "0:00:31"]
[BlackClock "0:00:23"]

1. Nf3 {[%clk 0:03:00]}  d5 {[%clk 0:02:59]} 2. g3 {[%clk 0:03:01]}  Nf6 {[%clk 0:03:00]} 3. Bg2 {[%clk 0:03:02]}  c6 {[%clk 0:03:00]} 4. O-O {[%clk 0:03:02]}  Bg4 {[%clk 0:03:01]} 5. Ne5 {[%clk 0:03:01]}  Bh5 {[%clk 0:03:00]} 6. f4 {[%clk 0:02:59]}  Nbd7 {[%clk 0:02:54]} 7. d4 {[%clk 0:02:59]}  e6 {[%clk 0:02:53]} 8. c3 {[%clk 0:02:59]}  Bg6 {[%clk 0:02:45]} 9. Nd2 {[%clk 0:02:58]}  Be7 {[%clk 0:02:40]} 10. Qe1 {[%clk 0:02:56]}  O-O {[%clk 0:02:37]} 11. Nxg6 {[%clk 0:02:56]}  hxg6 {[%clk 0:02:37]} 12. e4 {[%clk 0:02:56]}  dxe4 {[%clk 0:02:30]} 13. Nxe4 {[%clk 0:02:57]}  Nxe4 {[%clk 0:02:29]} 14. Qxe4 {[%clk 0:02:58]}  Nf6 {[%clk 0:02:29]} 15. Qf3 {[%clk 0:02:58]}  Rb8 {[%clk 0:02:25]} 16. Be3 {[%clk 0:02:56]}  Nd5 {[%clk 0:02:19]} 17. Bf2 {[%clk 0:02:56]}  Qb6 {[%clk 0:02:14]} 18. c4 {[%clk 0:02:52]}  Nf6 {[%clk 0:02:13]} 19. d5 {[%clk 0:02:36]}  Bc5 {[%clk 0:02:10]} 20. dxe6 {[%clk 0:02:34]}  Bxf2+ {[%clk 0:02:07]} 21. Rxf2 {[%clk 0:02:30]}  fxe6 {[%clk 0:02:06]} 22. Re1 {[%clk 0:02:29]}  Rbe8 {[%clk 0:02:04]} 23. Kh1 {[%clk 0:02:18]}  e5 {[%clk 0:01:57]} 24. Ref1 {[%clk 0:01:19]}  e4 {[%clk 0:01:45]} 25. Qb3 {[%clk 0:01:18]}  Kh7 {[%clk 0:01:36]} 26. Re2 {[%clk 0:01:17]}  e3 {[%clk 0:01:29]} 27. Qxb6 {[%clk 0:01:14]}  axb6 {[%clk 0:01:29]} 28. Rfe1 {[%clk 0:01:15]}  Ng4 {[%clk 0:01:02]} 29. Kg1 {[%clk 0:01:15]}  g5 {[%clk 0:00:48]} 30. fxg5 {[%clk 0:01:05]}  Rf2 {[%clk 0:00:38]} 31. h3 {[%clk 0:01:02]}  Rxe2 {[%clk 0:00:38]} 32. Rxe2 {[%clk 0:01:02]}  Nf2 {[%clk 0:00:38]} 33. h4 {[%clk 0:00:55]}  Kg6 {[%clk 0:00:37]} 34. Bf3 {[%clk 0:00:48]}  Re5 {[%clk 0:00:37]} 35. Kg2 {[%clk 0:00:47]}  Nd3 {[%clk 0:00:32]} 36. Bg4 {[%clk 0:00:41]}  Nc1 {[%clk 0:00:29]} 37. Re1 {[%clk 0:00:38]}  Nd3 {[%clk 0:00:23]} 38. Re2 {[%clk 0:00:38]}  Nc1 {[%clk 0:00:23]} 39. Re1 {[%clk 0:00:33]}  Nd3 {[%clk 0:00:23]} 40. Re2 {[%clk 0:00:31]} 1/2-1/2


[Site "https://www.chess.com"]

[Event "Titled Tuesday Blitz March 22 Late 2022"]
[White "Aravindh, Chithambaram VR."]
[Black "Papp, Levente"]
[WhiteFideId "5072786"]
[BlackFideId "751243"]
[WhiteElo "2561"]
[BlackElo "2308"]
[Result "1-0"]
[Round "03"]
[TimeControl "180+1"]
[Date "2022.03.22"]
[WhiteClock "0:00:12"]
[BlackClock "0:00:15"]

1. b3 {[%clk 0:03:00]}  d6 {[%clk 0:02:56]} 2. Bb2 {[%clk 0:03:01]}  Nd7 {[%clk 0:02:56]} 3. d4 {[%clk 0:03:00]}  Ngf6 {[%clk 0:02:55]} 4. Nd2 {[%clk 0:02:59]}  e5 {[%clk 0:02:43]} 5. e4 {[%clk 0:02:55]}  exd4 {[%clk 0:02:39]} 6. Ngf3 {[%clk 0:02:55]}  g6 {[%clk 0:02:31]} 7. Bxd4 {[%clk 0:02:51]}  Bg7 {[%clk 0:02:31]} 8. Bd3 {[%clk 0:02:49]}  O-O {[%clk 0:02:30]} 9. O-O {[%clk 0:02:48]}  Nc5 {[%clk 0:02:27]} 10. h3 {[%clk 0:02:45]}  Ne6 {[%clk 0:02:23]} 11. Be3 {[%clk 0:02:32]}  Nh5 {[%clk 0:02:20]} 12. Rb1 {[%clk 0:02:32]}  Nef4 {[%clk 0:02:13]} 13. Re1 {[%clk 0:02:29]}  Bd7 {[%clk 0:01:59]} 14. Bf1 {[%clk 0:02:26]}  Qc8 {[%clk 0:01:57]} 15. Nc4 {[%clk 0:02:14]}  b5 {[%clk 0:01:35]} 16. Nb2 {[%clk 0:02:02]}  h6 {[%clk 0:01:19]} 17. Nd3 {[%clk 0:01:54]}  Nxh3+ {[%clk 0:01:08]} 18. gxh3 {[%clk 0:01:53]}  Bxh3 {[%clk 0:01:09]} 19. Bxh3 {[%clk 0:01:33]}  Qxh3 {[%clk 0:01:08]} 20. Nh2 {[%clk 0:01:34]}  Rae8 {[%clk 0:00:50]} 21. Qg4 {[%clk 0:01:29]}  Qxg4+ {[%clk 0:00:48]} 22. Nxg4 {[%clk 0:01:30]}  Rxe4 {[%clk 0:00:47]} 23. f3 {[%clk 0:01:24]}  Re6 {[%clk 0:00:47]} 24. Bxh6 {[%clk 0:01:07]}  Bd4+ {[%clk 0:00:34]} 25. Be3 {[%clk 0:00:56]}  Bc3 {[%clk 0:00:32]} 26. Bf2 {[%clk 0:00:12]}  Bxe1 {[%clk 0:00:31]} 27. Rxe1 {[%clk 0:00:10]}  Rfe8 {[%clk 0:00:31]} 28. Rxe6 {[%clk 0:00:08]}  Rxe6 {[%clk 0:00:32]} 29. Kf1 {[%clk 0:00:08]}  a5 {[%clk 0:00:26]} 30. Ne3 {[%clk 0:00:08]}  c6 {[%clk 0:00:25]} 31. c4 {[%clk 0:00:06]}  f5 {[%clk 0:00:22]} 32. cxb5 {[%clk 0:00:06]}  cxb5 {[%clk 0:00:22]} 33. Nd5 {[%clk 0:00:07]}  Re8 {[%clk 0:00:13]} 34. Bd4 {[%clk 0:00:04]}  Kf7 {[%clk 0:00:12]} 35. Kf2 {[%clk 0:00:04]}  Rc8 {[%clk 0:00:12]} 36. Ne3 {[%clk 0:00:03]}  a4 {[%clk 0:00:12]} 37. bxa4 {[%clk 0:00:03]}  bxa4 {[%clk 0:00:13]} 38. f4 {[%clk 0:00:03]}  Rb8 {[%clk 0:00:10]} 39. Nc4 {[%clk 0:00:03]}  Ke6 {[%clk 0:00:09]} 40. Ke3 {[%clk 0:00:03]}  Rb1 {[%clk 0:00:09]} 41. Nd2 {[%clk 0:00:03]}  Rd1 {[%clk 0:00:08]} 42. Nf3 {[%clk 0:00:04]}  Ng3 {[%clk 0:00:08]} 43. Ng5+ {[%clk 0:00:04]}  Kd5 {[%clk 0:00:08]} 44. Bg7 {[%clk 0:00:03]}  Nf1+ {[%clk 0:00:08]} 45. Ke2 {[%clk 0:00:04]}  Rd2+ {[%clk 0:00:09]} 46. Kxf1 {[%clk 0:00:04]}  Rxd3 {[%clk 0:00:10]} 47. Ke2 {[%clk 0:00:03]}  Rg3 {[%clk 0:00:10]} 48. Nh7 {[%clk 0:00:03]}  Rg2+ {[%clk 0:00:10]} 49. Kd3 {[%clk 0:00:03]}  Rxa2 {[%clk 0:00:11]} 50. Nf6+ {[%clk 0:00:04]}  Kc6 {[%clk 0:00:12]} 51. Ng8 {[%clk 0:00:04]}  Ra3+ {[%clk 0:00:12]} 52. Kd4 {[%clk 0:00:03]}  Rg3 {[%clk 0:00:13]} 53. Ne7+ {[%clk 0:00:04]}  Kd7 {[%clk 0:00:13]} 54. Nd5 {[%clk 0:00:04]}  a3 {[%clk 0:00:13]} 55. Kc4 {[%clk 0:00:04]}  Ke6 {[%clk 0:00:12]} 56. Nc7+ {[%clk 0:00:04]}  Kf7 {[%clk 0:00:12]} 57. Bd4 {[%clk 0:00:04]}  Rg4 {[%clk 0:00:10]} 58. Nb5 {[%clk 0:00:04]}  Rxf4 {[%clk 0:00:10]} 59. Nxa3 {[%clk 0:00:04]}  Ke6 {[%clk 0:00:10]} 60. Nb5 {[%clk 0:00:04]}  g5 {[%clk 0:00:10]} 61. Nc7+ {[%clk 0:00:04]}  Kf7 {[%clk 0:00:10]} 62. Nd5 {[%clk 0:00:05]}  Rf1 {[%clk 0:00:10]} 63. Kd3 {[%clk 0:00:05]}  Rf3+ {[%clk 0:00:09]} 64. Ke2 {[%clk 0:00:05]}  g4 {[%clk 0:00:10]} 65. Be3 {[%clk 0:00:04]}  Ke6 {[%clk 0:00:10]} 66. Nf4+ {[%clk 0:00:04]}  Ke5 {[%clk 0:00:10]} 67. Nd3+ {[%clk 0:00:05]}  Ke4 {[%clk 0:00:09]} 68. Nf2+ {[%clk 0:00:05]}  Kd5 {[%clk 0:00:10]} 69. Nd3 {[%clk 0:00:06]}  Ke6 {[%clk 0:00:09]} 70. Nf4+ {[%clk 0:00:06]}  Kf7 {[%clk 0:00:10]} 71. Nd3 {[%clk 0:00:03]}  Rh3 {[%clk 0:00:10]} 72. Nf4 {[%clk 0:00:04]}  Rh2+ {[%clk 0:00:10]} 73. Kd3 {[%clk 0:00:04]}  g3 {[%clk 0:00:10]} 74. Bd4 {[%clk 0:00:03]}  Ra2 {[%clk 0:00:07]} 75. Ke3 {[%clk 0:00:03]}  g2 {[%clk 0:00:06]} 76. Kf3 {[%clk 0:00:03]}  Ra4 {[%clk 0:00:05]} 77. Be3 {[%clk 0:00:03]}  g1=Q {[%clk 0:00:04]} 78. Bxg1 {[%clk 0:00:03]}  Ra3+ {[%clk 0:00:04]} 79. Be3 {[%clk 0:00:03]}  Kf6 {[%clk 0:00:04]} 80. Nd5+ {[%clk 0:00:03]}  Ke5 {[%clk 0:00:04]} 81. Nf4 {[%clk 0:00:04]}  d5 {[%clk 0:00:05]} 82. Kf2 {[%clk 0:00:03]}  d4 {[%clk 0:00:05]} 83. Bd2 {[%clk 0:00:04]}  Ke4 {[%clk 0:00:05]} 84. Ke2 {[%clk 0:00:04]}  Ra2 {[%clk 0:00:06]} 85. Nd3 {[%clk 0:00:04]}  f4 {[%clk 0:00:05]} 86. Nf2+ {[%clk 0:00:04]}  Kd5 {[%clk 0:00:05]} 87. Nd3 {[%clk 0:00:03]}  f3+ {[%clk 0:00:04]} 88. Kd1 {[%clk 0:00:03]}  Ra1+ {[%clk 0:00:04]} 89. Bc1 {[%clk 0:00:03]}  Kc4 {[%clk 0:00:04]} 90. Ne5+ {[%clk 0:00:03]}  Kc3 {[%clk 0:00:04]} 91. Nxf3 {[%clk 0:00:04]}  d3 {[%clk 0:00:03]} 92. Nd2 {[%clk 0:00:05]}  Ra2 {[%clk 0:00:04]} 93. Ne4+ {[%clk 0:00:05]}  Kd4 {[%clk 0:00:04]} 94. Nd2 {[%clk 0:00:05]}  Ra6 {[%clk 0:00:03]} 95. Nf3+ {[%clk 0:00:05]}  Kc3 {[%clk 0:00:03]} 96. Bd2+ {[%clk 0:00:05]}  Kb3 {[%clk 0:00:04]} 97. Nd4+ {[%clk 0:00:04]}  Kc4 {[%clk 0:00:04]} 98. Nf3 {[%clk 0:00:03]}  Kd5 {[%clk 0:00:04]} 99. Bc1 {[%clk 0:00:02]}  Ke4 {[%clk 0:00:04]} 100. Nd2+ {[%clk 0:00:02]}  Kd4 {[%clk 0:00:05]} 101. Nb3+ {[%clk 0:00:03]}  Kc3 {[%clk 0:00:05]} 102. Nd2 {[%clk 0:00:02]}  Re6 {[%clk 0:00:05]} 103. Nf3 {[%clk 0:00:02]}  Re2 {[%clk 0:00:05]} 104. Bd2+ {[%clk 0:00:02]}  Kc4 {[%clk 0:00:05]} 105. Bc1 {[%clk 0:00:02]}  Rf2 {[%clk 0:00:05]} 106. Nd2+ {[%clk 0:00:02]}  Kc3 {[%clk 0:00:05]} 107. Ne4+ {[%clk 0:00:02]}  Kb3 {[%clk 0:00:05]} 108. Nxf2 {[%clk 0:00:03]}  Kc3 {[%clk 0:00:06]} 109. Ne4+ {[%clk 0:00:04]}  Kd4 {[%clk 0:00:06]} 110. Ng3 {[%clk 0:00:04]}  Kc3 {[%clk 0:00:06]} 111. Nf1 {[%clk 0:00:04]}  Kd4 {[%clk 0:00:06]} 112. Kd2 {[%clk 0:00:05]}  Kc4 {[%clk 0:00:06]} 113. Ne3+ {[%clk 0:00:06]}  Kd4 {[%clk 0:00:07]} 114. Bb2+ {[%clk 0:00:06]}  Ke4 {[%clk 0:00:08]} 115. Bc3 {[%clk 0:00:07]}  Kf3 {[%clk 0:00:08]} 116. Kxd3 {[%clk 0:00:07]}  Kf4 {[%clk 0:00:09]} 117. Bd4 {[%clk 0:00:07]}  Kf3 {[%clk 0:00:10]} 118. Be5 {[%clk 0:00:07]}  Kf2 {[%clk 0:00:09]} 119. Ke4 {[%clk 0:00:06]}  Kg1 {[%clk 0:00:10]} 120. Kf3 {[%clk 0:00:05]}  Kh1 {[%clk 0:00:10]} 121. Nf1 {[%clk 0:00:05]}  Kg1 {[%clk 0:00:11]} 122. Ng3 {[%clk 0:00:06]}  Kh2 {[%clk 0:00:11]} 123. Bd4 {[%clk 0:00:07]}  Kh3 {[%clk 0:00:12]} 124. Bg1 {[%clk 0:00:08]}  Kh4 {[%clk 0:00:12]} 125. Ne4 {[%clk 0:00:08]}  Kh3 {[%clk 0:00:13]} 126. Ng5+ {[%clk 0:00:08]}  Kh4 {[%clk 0:00:13]} 127. Kf4 {[%clk 0:00:09]}  Kh5 {[%clk 0:00:14]} 128. Kf5 {[%clk 0:00:10]}  Kh6 {[%clk 0:00:11]} 129. Bd4 {[%clk 0:00:09]}  Kh5 {[%clk 0:00:10]} 130. Bf2 {[%clk 0:00:09]}  Kh6 {[%clk 0:00:11]} 131. Ne6 {[%clk 0:00:10]}  Kh5 {[%clk 0:00:11]} 132. Ng7+ {[%clk 0:00:09]}  Kh6 {[%clk 0:00:11]} 133. Kf6 {[%clk 0:00:10]}  Kh7 {[%clk 0:00:12]} 134. Kf7 {[%clk 0:00:11]}  Kh6 {[%clk 0:00:12]} 135. Be3+ {[%clk 0:00:11]}  Kh7 {[%clk 0:00:13]} 136. Ne6 {[%clk 0:00:10]}  Kh8 {[%clk 0:00:14]} 137. Bh6 {[%clk 0:00:11]}  Kh7 {[%clk 0:00:14]} 138. Bf8 {[%clk 0:00:12]}  Kh8 {[%clk 0:00:14]} 139. Bg7+ {[%clk 0:00:12]}  Kh7 {[%clk 0:00:15]} 140. Nf8# {[%clk 0:00:12]} 1-0


[Site "https://www.chess.com"]

[Event "Titled Tuesday Blitz March 22 Late 2022"]
[White "Borodavkin, Anatoly"]
[Black "Papp, Petra"]
[WhiteFideId "14150662"]
[BlackFideId "739049"]
[WhiteElo "1845"]
[BlackElo "2259"]
[Result "1/2-1/2"]
[Round "03"]
[TimeControl "180+1"]
[Date "2022.03.22"]
[WhiteClock "0:00:10"]
[BlackClock "0:00:07"]

1. e4 {[%clk 0:03:00]}  d5 {[%clk 0:02:57]} 2. exd5 {[%clk 0:03:00]}  Qxd5 {[%clk 0:02:57]} 3. Nf3 {[%clk 0:03:01]}  Nf6 {[%clk 0:02:55]} 4. d4 {[%clk 0:02:59]}  Bg4 {[%clk 0:02:54]} 5. Be2 {[%clk 0:02:59]}  e6 {[%clk 0:02:53]} 6. h3 {[%clk 0:02:57]}  Bh5 {[%clk 0:02:53]} 7. O-O {[%clk 0:02:56]}  Be7 {[%clk 0:02:53]} 8. c4 {[%clk 0:02:55]}  Qd8 {[%clk 0:02:52]} 9. Nc3 {[%clk 0:02:43]}  Nbd7 {[%clk 0:02:51]} 10. Bf4 {[%clk 0:02:38]}  c6 {[%clk 0:02:51]} 11. Ne5 {[%clk 0:02:30]}  Bg6 {[%clk 0:02:48]} 12. Nxg6 {[%clk 0:02:22]}  hxg6 {[%clk 0:02:48]} 13. Bf3 {[%clk 0:02:21]}  Qb6 {[%clk 0:02:47]} 14. b3 {[%clk 0:02:17]}  O-O {[%clk 0:02:46]} 15. d5 {[%clk 0:02:05]}  cxd5 {[%clk 0:02:38]} 16. cxd5 {[%clk 0:02:06]}  exd5 {[%clk 0:02:38]} 17. Nxd5 {[%clk 0:02:04]}  Nxd5 {[%clk 0:02:37]} 18. Bxd5 {[%clk 0:01:56]}  Rad8 {[%clk 0:02:35]} 19. Qf3 {[%clk 0:01:52]}  Nc5 {[%clk 0:02:21]} 20. Rac1 {[%clk 0:01:45]}  Qf6 {[%clk 0:02:19]} 21. Bc4 {[%clk 0:01:40]}  b6 {[%clk 0:02:11]} 22. Rfe1 {[%clk 0:01:34]}  Bd6 {[%clk 0:02:09]} 23. Bxd6 {[%clk 0:01:29]}  Qxf3 {[%clk 0:02:08]} 24. gxf3 {[%clk 0:01:29]}  Rxd6 {[%clk 0:02:08]} 25. Re7 {[%clk 0:01:29]}  a5 {[%clk 0:02:07]} 26. Rce1 {[%clk 0:01:25]}  Rf6 {[%clk 0:02:05]} 27. Kg2 {[%clk 0:01:24]}  Kh7 {[%clk 0:02:03]} 28. Rc7 {[%clk 0:01:20]}  g5 {[%clk 0:02:01]} 29. Ree7 {[%clk 0:01:18]}  Kg6 {[%clk 0:02:00]} 30. a4 {[%clk 0:01:06]}  Rf4 {[%clk 0:01:44]} 31. Rc6+ {[%clk 0:01:01]}  Rf6 {[%clk 0:01:27]} 32. Rcc7 {[%clk 0:01:01]}  Rf4 {[%clk 0:01:17]} 33. Rc6+ {[%clk 0:01:01]}  f6 {[%clk 0:01:17]} 34. Rcc7 {[%clk 0:00:42]}  Rd8 {[%clk 0:01:07]} 35. Rxg7+ {[%clk 0:00:41]}  Kf5 {[%clk 0:01:07]} 36. Rc6 {[%clk 0:00:34]}  Nd3 {[%clk 0:00:58]} 37. Rxb6 {[%clk 0:00:23]}  Ne1+ {[%clk 0:00:56]} 38. Kf1 {[%clk 0:00:22]}  Nxf3 {[%clk 0:00:52]} 39. Rf7 {[%clk 0:00:17]}  Ke5 {[%clk 0:00:40]} 40. Rb5+ {[%clk 0:00:16]}  Kd4 {[%clk 0:00:38]} 41. Rxa5 {[%clk 0:00:16]}  Nd2+ {[%clk 0:00:36]} 42. Kg2 {[%clk 0:00:15]}  Ne4 {[%clk 0:00:30]} 43. f3 {[%clk 0:00:14]}  Nd2 {[%clk 0:00:28]} 44. Raa7 {[%clk 0:00:12]}  Nxf3 {[%clk 0:00:23]} 45. Rad7+ {[%clk 0:00:09]}  Rxd7 {[%clk 0:00:21]} 46. Rxd7+ {[%clk 0:00:10]}  Kc5 {[%clk 0:00:20]} 47. Rc7+ {[%clk 0:00:08]}  Kb4 {[%clk 0:00:19]} 48. Rb7+ {[%clk 0:00:09]}  Kc3 {[%clk 0:00:17]} 49. a5 {[%clk 0:00:09]}  Ne1+ {[%clk 0:00:07]} 50. Kg1 {[%clk 0:00:08]}  Nf3+ {[%clk 0:00:07]} 51. Kg2 {[%clk 0:00:08]}  Ne1+ {[%clk 0:00:07]} 52. Kg1 {[%clk 0:00:09]}  Nf3+ {[%clk 0:00:07]} 53. Kg2 {[%clk 0:00:10]} 1/2-1/2


[Site "https://www.chess.com"]

[Event "Titled Tuesday Blitz March 22 Late 2022"]
[White "Brahami, Lamine"]
[Black "Ronka, Erik"]
[WhiteFideId "7905637"]
[BlackFideId "505080"]
[WhiteElo "1909"]
[BlackElo "2264"]
[Result "1-0"]
[Round "03"]
[TimeControl "180+1"]
[Date "2022.03.22"]
[WhiteClock "0:02:16"]
[BlackClock "0:02:53"]

1. d4 {[%clk 0:03:00]}  d5 {[%clk 0:02:59]} 2. c4 {[%clk 0:03:00]}  c6 {[%clk 0:03:00]} 3. Nc3 {[%clk 0:02:59]}  Nf6 {[%clk 0:03:00]} 4. Nf3 {[%clk 0:02:55]}  e6 {[%clk 0:03:00]} 5. e3 {[%clk 0:02:55]}  Nbd7 {[%clk 0:03:00]} 6. Qc2 {[%clk 0:02:52]}  Bd6 {[%clk 0:03:00]} 7. cxd5 {[%clk 0:02:51]}  exd5 {[%clk 0:03:00]} 8. Bd3 {[%clk 0:02:52]}  O-O {[%clk 0:03:00]} 9. O-O {[%clk 0:02:52]}  Re8 {[%clk 0:03:01]} 10. Rb1 {[%clk 0:02:50]}  Nf8 {[%clk 0:03:01]} 11. h3 {[%clk 0:02:49]}  a5 {[%clk 0:03:01]} 12. a3 {[%clk 0:02:44]}  Ne6 {[%clk 0:03:01]} 13. Bd2 {[%clk 0:02:40]}  g6 {[%clk 0:03:00]} 14. Rfe1 {[%clk 0:02:39]}  Ng7 {[%clk 0:02:58]} 15. b4 {[%clk 0:02:31]}  axb4 {[%clk 0:02:59]} 16. axb4 {[%clk 0:02:32]}  b5 {[%clk 0:02:58]} 17. e4 {[%clk 0:02:22]}  dxe4 {[%clk 0:02:57]} 18. Nxe4 {[%clk 0:02:22]}  Nd5 {[%clk 0:02:53]} 19. Qxc6 {[%clk 0:02:16]} 1-0


[Site "https://www.chess.com"]

[Event "Titled Tuesday Blitz March 22 Late 2022"]
[White "Bryakin, Mikhail"]
[Black "Karas, Marek"]
[WhiteFideId "4165314"]
[BlackFideId "14928558"]
[WhiteElo "2780"]
[BlackElo "2538"]
[Result "1/2-1/2"]
[Round "03"]
[TimeControl "180+1"]
[Date "2022.03.22"]
[WhiteClock "0:00:22"]
[BlackClock "0:00:25"]

1. e4 {[%clk 0:02:59]}  e6 {[%clk 0:02:59]} 2. d4 {[%clk 0:02:56]}  d5 {[%clk 0:03:00]} 3. Nd2 {[%clk 0:02:54]}  c5 {[%clk 0:02:58]} 4. Ngf3 {[%clk 0:02:50]}  cxd4 {[%clk 0:02:57]} 5. exd5 {[%clk 0:02:49]}  Qxd5 {[%clk 0:02:57]} 6. Bc4 {[%clk 0:02:46]}  Qd6 {[%clk 0:02:57]} 7. Nf1 {[%clk 0:02:38]}  Nc6 {[%clk 0:02:51]} 8. Bd2 {[%clk 0:02:38]}  Nf6 {[%clk 0:02:50]} 9. Ng3 {[%clk 0:02:39]}  Be7 {[%clk 0:02:45]} 10. O-O {[%clk 0:02:36]}  O-O {[%clk 0:02:44]} 11. Re1 {[%clk 0:02:37]}  b6 {[%clk 0:02:34]} 12. a3 {[%clk 0:02:36]}  Bb7 {[%clk 0:02:34]} 13. Ng5 {[%clk 0:02:30]}  Kh8 {[%clk 0:02:20]} 14. N3e4 {[%clk 0:02:25]}  Nxe4 {[%clk 0:02:20]} 15. Nxe4 {[%clk 0:02:26]}  Qd8 {[%clk 0:02:15]} 16. Qh5 {[%clk 0:02:26]}  Bf6 {[%clk 0:01:56]} 17. Bg5 {[%clk 0:02:19]}  Be7 {[%clk 0:01:45]} 18. Bxe7 {[%clk 0:02:05]}  Qxe7 {[%clk 0:01:46]} 19. Ng5 {[%clk 0:02:05]}  h6 {[%clk 0:01:45]} 20. h4 {[%clk 0:01:58]}  Rac8 {[%clk 0:01:28]} 21. Bxe6 {[%clk 0:01:20]}  fxe6 {[%clk 0:01:23]} 22. Rxe6 {[%clk 0:01:21]}  Qd7 {[%clk 0:01:13]} 23. Rae1 {[%clk 0:01:21]}  Kg8 {[%clk 0:00:53]} 24. R1e4 {[%clk 0:00:46]}  Rc7 {[%clk 0:00:32]} 25. Re8 {[%clk 0:00:43]}  Rc8 {[%clk 0:00:25]} 26. R8e6 {[%clk 0:00:43]}  Rc7 {[%clk 0:00:25]} 27. Re8 {[%clk 0:00:36]}  Rc8 {[%clk 0:00:25]} 28. R8e6 {[%clk 0:00:22]} 1/2-1/2


[Site "https://www.chess.com"]

[Event "Titled Tuesday Blitz March 22 Late 2022"]
[White "Cavanah, Troy"]
[Black "Golubev, Mikhail"]
[WhiteFideId "30949670"]
[BlackFideId "14100983"]
[WhiteElo "1878"]
[BlackElo "2374"]
[Result "0-1"]
[Round "03"]
[TimeControl "180+1"]
[Date "2022.03.22"]
[WhiteClock "0:00:01"]
[BlackClock "0:00:10"]

1. e4 {[%clk 0:03:00]}  c5 {[%clk 0:02:59]} 2. Nf3 {[%clk 0:03:00]}  d6 {[%clk 0:02:59]} 3. d4 {[%clk 0:03:00]}  Nf6 {[%clk 0:02:59]} 4. Nc3 {[%clk 0:02:53]}  cxd4 {[%clk 0:02:58]} 5. Nxd4 {[%clk 0:02:54]}  Nc6 {[%clk 0:02:58]} 6. Bg5 {[%clk 0:02:53]}  e6 {[%clk 0:02:57]} 7. Qd2 {[%clk 0:02:50]}  a6 {[%clk 0:02:53]} 8. Nxc6 {[%clk 0:02:43]}  bxc6 {[%clk 0:02:52]} 9. Bc4 {[%clk 0:02:41]}  d5 {[%clk 0:02:42]} 10. exd5 {[%clk 0:02:34]}  cxd5 {[%clk 0:02:37]} 11. Bb3 {[%clk 0:02:30]}  Be7 {[%clk 0:02:35]} 12. O-O-O {[%clk 0:02:26]}  O-O {[%clk 0:02:30]} 13. Kb1 {[%clk 0:02:23]}  a5 {[%clk 0:02:22]} 14. a4 {[%clk 0:02:22]}  Bd7 {[%clk 0:01:57]} 15. f3 {[%clk 0:02:10]}  Rb8 {[%clk 0:01:52]} 16. Qd3 {[%clk 0:01:47]}  Qc7 {[%clk 0:01:44]} 17. Rhe1 {[%clk 0:01:35]}  Bc6 {[%clk 0:00:54]} 18. g3 {[%clk 0:01:27]}  Rfc8 {[%clk 0:00:52]} 19. Bf4 {[%clk 0:01:27]}  Bd6 {[%clk 0:00:51]} 20. Bxd6 {[%clk 0:01:08]}  Qxd6 {[%clk 0:00:52]} 21. Ne4 {[%clk 0:01:08]}  Qe7 {[%clk 0:00:51]} 22. Nxf6+ {[%clk 0:01:00]}  Qxf6 {[%clk 0:00:51]} 23. f4 {[%clk 0:00:55]}  Bxa4 {[%clk 0:00:48]} 24. Re5 {[%clk 0:00:41]}  Bxb3 {[%clk 0:00:47]} 25. cxb3 {[%clk 0:00:41]}  Rc6 {[%clk 0:00:40]} 26. Rde1 {[%clk 0:00:28]}  g6 {[%clk 0:00:36]} 27. Qd4 {[%clk 0:00:26]}  Rcb6 {[%clk 0:00:31]} 28. R1e3 {[%clk 0:00:13]}  Qd8 {[%clk 0:00:17]} 29. Qc3 {[%clk 0:00:07]}  Qd7 {[%clk 0:00:13]} 30. Rd3 {[%clk 0:00:05]}  Qb7 {[%clk 0:00:13]} 31. Ree3 {[%clk 0:00:04]}  a4 {[%clk 0:00:12]} 32. Kc2 {[%clk 0:00:02]}  axb3+ {[%clk 0:00:11]} 33. Kd2 {[%clk 0:00:02]}  Rc6 {[%clk 0:00:11]} 34. Qe5 {[%clk 0:00:01]}  Rc2+ {[%clk 0:00:11]} 35. Ke1 {[%clk 0:00:01]}  Ra8 {[%clk 0:00:10]} 0-1


[Site "https://www.chess.com"]